[Event "Titled Tuesday Blitz May 10 Early 2022"]
[White "Todorovic, Bojan"]
[Black "Martic, Ivan"]
[WhiteFideId "917087"]
[BlackFideId "929301"]
[WhiteElo "2266"]
[BlackElo "2317"]
[Result "1/2-1/2"]
[Round "01"]
[TimeControl "180+1"]
[Date "2022.05.11"]
[WhiteClock "0:00:09"]
[BlackClock "0:00:20"]

1. d4 {[%clk 0:02:58]}  d5 {[%clk 0:02:58]} 2. c4 {[%clk 0:02:58]}  c6 {[%clk 0:02:58]} 3. Nf3 {[%clk 0:02:57]}  Nf6 {[%clk 0:02:58]} 4. e3 {[%clk 0:02:57]}  Bg4 {[%clk 0:02:57]} 5. Nc3 {[%clk 0:02:56]}  e6 {[%clk 0:02:57]} 6. Qb3 {[%clk 0:02:54]}  Qb6 {[%clk 0:02:51]} 7. Ne5 {[%clk 0:02:54]}  Bh5 {[%clk 0:02:45]} 8. Bd2 {[%clk 0:02:50]}  Nbd7 {[%clk 0:02:42]} 9. Nxd7 {[%clk 0:02:45]}  Nxd7 {[%clk 0:02:43]} 10. Bd3 {[%clk 0:02:38]}  Be7 {[%clk 0:02:37]} 11. O-O {[%clk 0:02:37]}  O-O {[%clk 0:02:34]} 12. Rac1 {[%clk 0:02:24]}  Qxb3 {[%clk 0:02:10]} 13. axb3 {[%clk 0:02:23]}  f5 {[%clk 0:02:10]} 14. Ne2 {[%clk 0:02:19]}  g5 {[%clk 0:02:06]} 15. f3 {[%clk 0:02:10]}  a6 {[%clk 0:01:59]} 16. Ra1 {[%clk 0:02:05]}  h6 {[%clk 0:01:56]} 17. b4 {[%clk 0:02:00]}  Nb6 {[%clk 0:01:49]} 18. b3 {[%clk 0:01:58]}  Nd7 {[%clk 0:01:26]} 19. b5 {[%clk 0:01:54]}  axb5 {[%clk 0:01:24]} 20. cxb5 {[%clk 0:01:54]}  c5 {[%clk 0:01:22]} 21. Rfc1 {[%clk 0:01:42]}  Rfc8 {[%clk 0:01:05]} 22. Nc3 {[%clk 0:01:35]}  Rxa1 {[%clk 0:00:59]} 23. Rxa1 {[%clk 0:01:34]}  cxd4 {[%clk 0:00:59]} 24. exd4 {[%clk 0:01:33]}  Bb4 {[%clk 0:00:59]} 25. Nxd5 {[%clk 0:01:29]}  Bf8 {[%clk 0:00:42]} 26. Ne3 {[%clk 0:01:22]}  Bg7 {[%clk 0:00:41]} 27. Ra4 {[%clk 0:01:20]}  Nb6 {[%clk 0:00:41]} 28. Bc4 {[%clk 0:01:05]}  Kf7 {[%clk 0:00:31]} 29. Nxf5 {[%clk 0:00:54]}  Bxd4+ {[%clk 0:00:24]} 30. Kf1 {[%clk 0:00:49]}  Bc5 {[%clk 0:00:23]} 31. Ra7 {[%clk 0:00:38]}  Nxc4 {[%clk 0:00:23]} 32. Rxb7+ {[%clk 0:00:37]}  Kf6 {[%clk 0:00:23]} 33. bxc4 {[%clk 0:00:35]}  exf5 {[%clk 0:00:20]} 34. Bc3+ {[%clk 0:00:31]}  Ke6 {[%clk 0:00:20]} 35. Rh7 {[%clk 0:00:28]}  Bf7 {[%clk 0:00:20]} 36. Rxh6+ {[%clk 0:00:27]}  Ke7 {[%clk 0:00:20]} 37. Bf6+ {[%clk 0:00:22]}  Kd7 {[%clk 0:00:20]} 38. Rh7 {[%clk 0:00:21]}  Ke6 {[%clk 0:00:20]} 39. Bxg5 {[%clk 0:00:21]}  Bd4 {[%clk 0:00:17]} 40. Rh6+ {[%clk 0:00:16]}  Kd7 {[%clk 0:00:17]} 41. Rh7 {[%clk 0:00:14]}  Ke6 {[%clk 0:00:16]} 42. Rh6+ {[%clk 0:00:14]}  Kd7 {[%clk 0:00:16]} 43. Rh7 {[%clk 0:00:15]}  Rf8 {[%clk 0:00:15]} 44. Bh6 {[%clk 0:00:14]}  Ke8 {[%clk 0:00:15]} 45. Bxf8 {[%clk 0:00:13]}  Bxc4+ {[%clk 0:00:15]} 46. Ke1 {[%clk 0:00:13]}  Kxf8 {[%clk 0:00:16]} 47. Rh4 {[%clk 0:00:10]}  Bc3+ {[%clk 0:00:14]} 48. Kd1 {[%clk 0:00:11]}  Bxb5 {[%clk 0:00:15]} 49. Rf4 {[%clk 0:00:09]}  Bd7 {[%clk 0:00:15]} 50. g4 {[%clk 0:00:06]}  Kf7 {[%clk 0:00:15]} 51. Rxf5+ {[%clk 0:00:06]}  Bxf5 {[%clk 0:00:15]} 52. gxf5 {[%clk 0:00:06]}  Kf6 {[%clk 0:00:15]} 53. h4 {[%clk 0:00:06]}  Kxf5 {[%clk 0:00:15]} 54. h5 {[%clk 0:00:07]}  Bh8 {[%clk 0:00:16]} 55. h6 {[%clk 0:00:07]}  Kg5 {[%clk 0:00:16]} 56. h7 {[%clk 0:00:08]}  Kh6 {[%clk 0:00:17]} 57. f4 {[%clk 0:00:08]}  Kxh7 {[%clk 0:00:18]} 58. f5 {[%clk 0:00:09]}  Kg8 {[%clk 0:00:19]} 59. f6 {[%clk 0:00:09]}  Kf7 {[%clk 0:00:19]} 60. Ke2 {[%clk 0:00:09]}  Bxf6 {[%clk 0:00:20]} 1/2-1/2


[Site "https://www.chess.com"]

[Event "Titled Tuesday Blitz May 10 Early 2022"]
[White "Toncheva, Nadya"]
[Black "Yilmaz, Mustafa"]
[WhiteFideId "2924056"]
[BlackFideId "6302718"]
[WhiteElo "1888"]
[BlackElo "2568"]
[Result "0-1"]
[Round "01"]
[TimeControl "180+1"]
[Date "2022.05.11"]
[WhiteClock "0:00:02"]
[BlackClock "0:00:15"]

1. e4 {[%clk 0:02:58]}  c5 {[%clk 0:02:59]} 2. c3 {[%clk 0:02:57]}  Nf6 {[%clk 0:02:58]} 3. e5 {[%clk 0:02:56]}  Nd5 {[%clk 0:02:59]} 4. Nf3 {[%clk 0:02:53]}  e6 {[%clk 0:02:58]} 5. d4 {[%clk 0:02:51]}  cxd4 {[%clk 0:02:57]} 6. cxd4 {[%clk 0:02:51]}  b6 {[%clk 0:02:58]} 7. Bc4 {[%clk 0:02:44]}  Ba6 {[%clk 0:02:56]} 8. Nbd2 {[%clk 0:02:32]}  Be7 {[%clk 0:02:31]} 9. O-O {[%clk 0:02:29]}  O-O {[%clk 0:02:31]} 10. Bxa6 {[%clk 0:02:19]}  Nxa6 {[%clk 0:02:30]} 11. Ne4 {[%clk 0:02:16]}  Nac7 {[%clk 0:02:09]} 12. Qe2 {[%clk 0:02:07]}  f6 {[%clk 0:02:03]} 13. Bd2 {[%clk 0:02:00]}  f5 {[%clk 0:01:54]} 14. Nc3 {[%clk 0:01:43]}  Qb8 {[%clk 0:01:47]} 15. Rac1 {[%clk 0:01:41]}  Qb7 {[%clk 0:01:48]} 16. Nxd5 {[%clk 0:01:28]}  Nxd5 {[%clk 0:01:41]} 17. Rc2 {[%clk 0:01:28]}  b5 {[%clk 0:01:36]} 18. Rfc1 {[%clk 0:01:28]}  a5 {[%clk 0:01:37]} 19. Ne1 {[%clk 0:01:19]}  a4 {[%clk 0:01:30]} 20. Nd3 {[%clk 0:01:13]}  Rfc8 {[%clk 0:01:27]} 21. Nc5 {[%clk 0:01:05]}  Bxc5 {[%clk 0:01:27]} 22. Rxc5 {[%clk 0:01:05]}  Rxc5 {[%clk 0:01:19]} 23. Rxc5 {[%clk 0:01:06]}  b4 {[%clk 0:01:11]} 24. Qc4 {[%clk 0:01:03]}  b3 {[%clk 0:01:07]} 25. a3 {[%clk 0:01:01]}  Qa6 {[%clk 0:01:07]} 26. Qxa6 {[%clk 0:00:50]}  Rxa6 {[%clk 0:01:08]} 27. Kf1 {[%clk 0:00:48]}  Kf7 {[%clk 0:00:48]} 28. Ke2 {[%clk 0:00:48]}  d6 {[%clk 0:00:39]} 29. Rc4 {[%clk 0:00:36]}  dxe5 {[%clk 0:00:37]} 30. dxe5 {[%clk 0:00:36]}  h6 {[%clk 0:00:35]} 31. Kd3 {[%clk 0:00:29]}  g5 {[%clk 0:00:35]} 32. h4 {[%clk 0:00:26]}  Kg6 {[%clk 0:00:27]} 33. hxg5 {[%clk 0:00:26]}  hxg5 {[%clk 0:00:28]} 34. Rc8 {[%clk 0:00:25]}  f4 {[%clk 0:00:28]} 35. f3 {[%clk 0:00:18]}  Kf5 {[%clk 0:00:27]} 36. Kd4 {[%clk 0:00:15]}  Kg6 {[%clk 0:00:21]} 37. Rd8 {[%clk 0:00:14]}  Ne7 {[%clk 0:00:21]} 38. Rd7 {[%clk 0:00:12]}  Nc6+ {[%clk 0:00:18]} 39. Ke4 {[%clk 0:00:12]}  Ra8 {[%clk 0:00:17]} 40. Rd6 {[%clk 0:00:12]}  Nd8 {[%clk 0:00:17]} 41. Bb4 {[%clk 0:00:11]}  Kf7 {[%clk 0:00:17]} 42. Rd7+ {[%clk 0:00:10]}  Kg6 {[%clk 0:00:17]} 43. Re7 {[%clk 0:00:10]}  Rc8 {[%clk 0:00:16]} 44. Re8 {[%clk 0:00:07]}  Rc2 {[%clk 0:00:13]} 45. Rxd8 {[%clk 0:00:06]}  Rxb2 {[%clk 0:00:14]} 46. Rd6 {[%clk 0:00:05]}  Re2+ {[%clk 0:00:11]} 47. Kd3 {[%clk 0:00:05]}  b2 {[%clk 0:00:12]} 48. Rxe6+ {[%clk 0:00:03]}  Kh5 {[%clk 0:00:13]} 49. Bf8 {[%clk 0:00:02]}  b1=Q+ {[%clk 0:00:14]} 50. Kxe2 {[%clk 0:00:02]}  Qa2+ {[%clk 0:00:14]} 51. Kd3 {[%clk 0:00:02]}  Qxe6 {[%clk 0:00:15]} 0-1


[Site "https://www.chess.com"]

[Event "Titled Tuesday Blitz May 10 Early 2022"]
[White "Wachinger, Guenther"]
[Black "Matinian, Nikita"]
[WhiteFideId "4604261"]
[BlackFideId "24129100"]
[WhiteElo "2212"]
[BlackElo "2422"]
[Result "0-1"]
[Round "01"]
[TimeControl "180+1"]
[Date "2022.05.11"]
[WhiteClock "0:00:02"]
[BlackClock "0:00:11"]

1. e4 {[%clk 0:03:00]}  c5 {[%clk 0:02:59]} 2. Nf3 {[%clk 0:02:58]}  d6 {[%clk 0:02:59]} 3. d4 {[%clk 0:02:54]}  cxd4 {[%clk 0:02:59]} 4. Nxd4 {[%clk 0:02:55]}  Nf6 {[%clk 0:02:59]} 5. Nc3 {[%clk 0:02:55]}  g6 {[%clk 0:02:59]} 6. Be3 {[%clk 0:02:55]}  Bg7 {[%clk 0:03:00]} 7. f3 {[%clk 0:02:55]}  Nc6 {[%clk 0:02:59]} 8. Qd2 {[%clk 0:02:55]}  O-O {[%clk 0:02:59]} 9. O-O-O {[%clk 0:02:55]}  d5 {[%clk 0:02:59]} 10. Kb1 {[%clk 0:02:56]}  Nxd4 {[%clk 0:02:57]} 11. e5 {[%clk 0:02:56]}  Nf5 {[%clk 0:02:57]} 12. exf6 {[%clk 0:02:56]}  exf6 {[%clk 0:02:54]} 13. Bc5 {[%clk 0:02:56]}  d4 {[%clk 0:02:52]} 14. Bxf8 {[%clk 0:02:56]}  Bxf8 {[%clk 0:02:45]} 15. g4 {[%clk 0:02:47]}  Bh6 {[%clk 0:02:39]} 16. Qd3 {[%clk 0:02:43]}  Qb6 {[%clk 0:02:30]} 17. Nd5 {[%clk 0:01:46]}  Qd6 {[%clk 0:02:26]} 18. gxf5 {[%clk 0:01:43]}  Qxd5 {[%clk 0:02:24]} 19. Qxd4 {[%clk 0:01:41]}  Qxf5 {[%clk 0:02:21]} 20. Qd8+ {[%clk 0:01:39]}  Kg7 {[%clk 0:02:21]} 21. Bc4 {[%clk 0:01:34]}  Bf4 {[%clk 0:01:59]} 22. h4 {[%clk 0:01:15]}  Qc5 {[%clk 0:01:45]} 23. Bb3 {[%clk 0:00:54]}  a5 {[%clk 0:01:27]} 24. h5 {[%clk 0:00:48]}  gxh5 {[%clk 0:01:11]} 25. Rhg1+ {[%clk 0:00:42]}  Bg5 {[%clk 0:00:56]} 26. f4 {[%clk 0:00:42]}  h6 {[%clk 0:00:39]} 27. fxg5 {[%clk 0:00:42]}  hxg5 {[%clk 0:00:40]} 28. Rgf1 {[%clk 0:00:38]}  Ra6 {[%clk 0:00:37]} 29. Qe8 {[%clk 0:00:18]}  Be6 {[%clk 0:00:35]} 30. Bxe6 {[%clk 0:00:16]}  Rxe6 {[%clk 0:00:36]} 31. Qd7 {[%clk 0:00:15]}  Qc6 {[%clk 0:00:34]} 32. Qd2 {[%clk 0:00:10]}  a4 {[%clk 0:00:32]} 33. Qd3 {[%clk 0:00:08]}  h4 {[%clk 0:00:31]} 34. Rg1 {[%clk 0:00:06]}  Qe4 {[%clk 0:00:28]} 35. Qh3 {[%clk 0:00:06]}  a3 {[%clk 0:00:26]} 36. Qxa3 {[%clk 0:00:05]}  Ra6 {[%clk 0:00:23]} 37. Qc3 {[%clk 0:00:03]}  Rc6 {[%clk 0:00:22]} 38. Rxg5+ {[%clk 0:00:02]}  Kh6 {[%clk 0:00:22]} 39. Rc5 {[%clk 0:00:02]}  Rxc5 {[%clk 0:00:19]} 40. Qxc5 {[%clk 0:00:03]}  h3 {[%clk 0:00:19]} 41. Qg1 {[%clk 0:00:03]}  Kh5 {[%clk 0:00:17]} 42. Rf1 {[%clk 0:00:03]}  f5 {[%clk 0:00:16]} 43. Qh2 {[%clk 0:00:04]}  Qg4 {[%clk 0:00:14]} 44. Rg1 {[%clk 0:00:04]}  Qf3 {[%clk 0:00:13]} 45. a3 {[%clk 0:00:04]}  f4 {[%clk 0:00:13]} 46. Re1 {[%clk 0:00:03]}  Qg3 {[%clk 0:00:13]} 47. Qe2+ {[%clk 0:00:02]}  f3 {[%clk 0:00:13]} 48. Qb5+ {[%clk 0:00:02]}  Kg6 {[%clk 0:00:12]} 49. Qb6+ {[%clk 0:00:02]}  f6 {[%clk 0:00:11]} 0-1


[Site "https://www.chess.com"]

[Event "Titled Tuesday Blitz May 10 Early 2022"]
[White "Wagh Suyog"]
[Black "Zia, Tahsin Tajwar"]
[WhiteFideId "25071688"]
[BlackFideId "10211888"]
[WhiteElo "2181"]
[BlackElo "1800"]
[Result "0-1"]
[Round "01"]
[TimeControl "180+1"]
[Date "2022.05.11"]
[WhiteClock "0:00:36"]
[BlackClock "0:00:11"]

1. e4 {[%clk 0:02:55]}  c6 {[%clk 0:02:58]} 2. d4 {[%clk 0:02:52]}  d5 {[%clk 0:02:59]} 3. e5 {[%clk 0:02:53]}  Bf5 {[%clk 0:02:58]} 4. h4 {[%clk 0:02:53]}  h5 {[%clk 0:02:56]} 5. Nf3 {[%clk 0:02:53]}  e6 {[%clk 0:02:53]} 6. Bd3 {[%clk 0:02:53]}  Bg4 {[%clk 0:02:51]} 7. O-O {[%clk 0:02:48]}  Be7 {[%clk 0:02:42]} 8. g3 {[%clk 0:02:40]}  Nh6 {[%clk 0:02:34]} 9. Re1 {[%clk 0:02:37]}  Nf5 {[%clk 0:02:32]} 10. c3 {[%clk 0:02:38]}  Nd7 {[%clk 0:02:30]} 11. Nbd2 {[%clk 0:02:37]}  c5 {[%clk 0:02:26]} 12. dxc5 {[%clk 0:02:36]}  Nxc5 {[%clk 0:02:24]} 13. Bb5+ {[%clk 0:02:36]}  Kf8 {[%clk 0:02:23]} 14. Nf1 {[%clk 0:02:36]}  Ne4 {[%clk 0:02:18]} 15. Bd3 {[%clk 0:02:29]}  Bc5 {[%clk 0:01:50]} 16. Ne3 {[%clk 0:02:29]}  Qb6 {[%clk 0:01:28]} 17. Qe2 {[%clk 0:02:19]}  g5 {[%clk 0:00:48]} 18. Nxg4 {[%clk 0:01:25]}  hxg4 {[%clk 0:00:43]} 19. Bxe4 {[%clk 0:01:25]}  Nxg3 {[%clk 0:00:37]} 20. Qc2 {[%clk 0:01:22]}  Nxe4 {[%clk 0:00:33]} 21. Rxe4 {[%clk 0:01:22]}  dxe4 {[%clk 0:00:30]} 22. Nxg5 {[%clk 0:01:23]}  g3 {[%clk 0:00:24]} 23. Nxe4 {[%clk 0:01:21]}  Bxf2+ {[%clk 0:00:23]} 24. Kg2 {[%clk 0:01:15]}  Rxh4 {[%clk 0:00:22]} 25. Nxg3 {[%clk 0:01:16]}  Bxg3 {[%clk 0:00:20]} 26. Kxg3 {[%clk 0:01:17]}  Rh1 {[%clk 0:00:14]} 27. Kf3 {[%clk 0:00:57]}  Qc6+ {[%clk 0:00:12]} 28. Kg3 {[%clk 0:00:54]}  Rg1+ {[%clk 0:00:11]} 29. Kf4 {[%clk 0:00:50]}  Rf1+ {[%clk 0:00:10]} 30. Kg5 {[%clk 0:00:47]}  Qh1 {[%clk 0:00:07]} 31. Be3 {[%clk 0:00:42]}  Rxa1 {[%clk 0:00:03]} 32. Bc5+ {[%clk 0:00:42]}  Kg7 {[%clk 0:00:04]} 33. Kf4 {[%clk 0:00:38]}  Rf1+ {[%clk 0:00:04]} 34. Ke3 {[%clk 0:00:38]}  Qf3+ {[%clk 0:00:04]} 35. Kd4 {[%clk 0:00:39]}  Rd8+ {[%clk 0:00:04]} 36. Bd6 {[%clk 0:00:39]}  Rd1+ {[%clk 0:00:04]} 37. Kc5 {[%clk 0:00:39]}  Qd5+ {[%clk 0:00:04]} 38. Kb4 {[%clk 0:00:39]}  a5+ {[%clk 0:00:03]} 39. Ka3 {[%clk 0:00:39]}  Rxd6 {[%clk 0:00:04]} 40. exd6 {[%clk 0:00:39]}  Qxd6+ {[%clk 0:00:04]} 41. Ka4 {[%clk 0:00:40]}  Qc6+ {[%clk 0:00:05]} 42. Ka3 {[%clk 0:00:38]}  Qc5+ {[%clk 0:00:05]} 43. Ka4 {[%clk 0:00:37]}  b5+ {[%clk 0:00:05]} 44. Kxa5 {[%clk 0:00:35]}  Rd7 {[%clk 0:00:06]} 45. Qg2+ {[%clk 0:00:32]}  Kf8 {[%clk 0:00:06]} 46. Qa8+ {[%clk 0:00:32]}  Ke7 {[%clk 0:00:07]} 47. b4 {[%clk 0:00:31]}  Ra7+ {[%clk 0:00:06]} 48. Qxa7+ {[%clk 0:00:31]}  Qxa7+ {[%clk 0:00:07]} 49. Kxb5 {[%clk 0:00:32]}  Qxa2 {[%clk 0:00:08]} 50. c4 {[%clk 0:00:33]}  Qa8 {[%clk 0:00:08]} 51. c5 {[%clk 0:00:33]}  f5 {[%clk 0:00:09]} 52. Kb6 {[%clk 0:00:33]}  f4 {[%clk 0:00:09]} 53. c6 {[%clk 0:00:33]}  f3 {[%clk 0:00:10]} 54. c7 {[%clk 0:00:34]}  f2 {[%clk 0:00:11]} 55. c8=Q {[%clk 0:00:34]}  Qxc8 {[%clk 0:00:11]} 56. b5 {[%clk 0:00:35]}  f1=Q {[%clk 0:00:10]} 57. Ka7 {[%clk 0:00:36]}  Qa1+ {[%clk 0:00:10]} 58. Kb6 {[%clk 0:00:36]}  Qd4+ {[%clk 0:00:10]} 59. Ka5 {[%clk 0:00:36]}  Qa8# {[%clk 0:00:11]} 0-1


[Site "https://www.chess.com"]

[Event "Titled Tuesday Blitz May 10 Early 2022"]
[White "Wagner, Dennis"]
[Black "Duarte, Leonardo"]
[WhiteFideId "24650684"]
[BlackFideId "110582"]
[WhiteElo "2355"]
[BlackElo "2217"]
[Result "1-0"]
[Round "01"]
[TimeControl "180+1"]
[Date "2022.05.11"]
[WhiteClock "0:00:16"]
[BlackClock "0:00:03"]

1. d4 {[%clk 0:02:56]}  Nf6 {[%clk 0:02:54]} 2. Nf3 {[%clk 0:02:54]}  g6 {[%clk 0:02:51]} 3. g3 {[%clk 0:02:51]}  Bg7 {[%clk 0:02:51]} 4. Bg2 {[%clk 0:02:52]}  O-O {[%clk 0:02:49]} 5. O-O {[%clk 0:02:53]}  d6 {[%clk 0:02:48]} 6. Re1 {[%clk 0:02:50]}  c5 {[%clk 0:02:40]} 7. dxc5 {[%clk 0:02:41]}  dxc5 {[%clk 0:02:39]} 8. Qxd8 {[%clk 0:02:42]}  Rxd8 {[%clk 0:02:38]} 9. e4 {[%clk 0:02:42]}  Nc6 {[%clk 0:02:34]} 10. c3 {[%clk 0:02:42]}  Bg4 {[%clk 0:02:12]} 11. Bf4 {[%clk 0:02:26]}  Nd7 {[%clk 0:02:00]} 12. Nbd2 {[%clk 0:01:24]}  Nde5 {[%clk 0:01:52]} 13. Be3 {[%clk 0:01:24]}  Nd3 {[%clk 0:01:45]} 14. Reb1 {[%clk 0:01:23]}  b6 {[%clk 0:01:37]} 15. a4 {[%clk 0:01:24]}  Na5 {[%clk 0:01:35]} 16. h3 {[%clk 0:01:18]}  Be6 {[%clk 0:01:07]} 17. Ng5 {[%clk 0:01:18]}  Bc8 {[%clk 0:01:07]} 18. f4 {[%clk 0:01:18]}  Ba6 {[%clk 0:00:59]} 19. e5 {[%clk 0:01:18]}  Rac8 {[%clk 0:00:49]} 20. b4 {[%clk 0:01:11]}  cxb4 {[%clk 0:00:41]} 21. cxb4 {[%clk 0:01:12]}  Nc4 {[%clk 0:00:41]} 22. Nxc4 {[%clk 0:01:12]}  Bxc4 {[%clk 0:00:38]} 23. Ra3 {[%clk 0:01:04]}  f6 {[%clk 0:00:37]} 24. exf6 {[%clk 0:01:00]}  exf6 {[%clk 0:00:36]} 25. Ne4 {[%clk 0:01:00]}  f5 {[%clk 0:00:35]} 26. Nd2 {[%clk 0:00:58]}  Bf7 {[%clk 0:00:34]} 27. b5 {[%clk 0:00:55]}  Bc3 {[%clk 0:00:33]} 28. Bc6 {[%clk 0:00:49]}  Bb4 {[%clk 0:00:21]} 29. Raa1 {[%clk 0:00:41]}  Bc5 {[%clk 0:00:20]} 30. Bxc5 {[%clk 0:00:35]}  Nxc5 {[%clk 0:00:21]} 31. Nf3 {[%clk 0:00:35]}  Rd3 {[%clk 0:00:19]} 32. Rd1 {[%clk 0:00:23]}  Rcd8 {[%clk 0:00:18]} 33. Rxd3 {[%clk 0:00:24]}  Rxd3 {[%clk 0:00:18]} 34. Kf2 {[%clk 0:00:24]}  Ne4+ {[%clk 0:00:19]} 35. Bxe4 {[%clk 0:00:24]}  fxe4 {[%clk 0:00:19]} 36. Ne5 {[%clk 0:00:24]}  Rb3 {[%clk 0:00:12]} 37. Rc1 {[%clk 0:00:23]}  Bd5 {[%clk 0:00:04]} 38. Rd1 {[%clk 0:00:23]}  e3+ {[%clk 0:00:04]} 39. Ke2 {[%clk 0:00:23]}  Bg2 {[%clk 0:00:04]} 40. Rd8+ {[%clk 0:00:22]}  Kg7 {[%clk 0:00:04]} 41. Rd7+ {[%clk 0:00:23]}  Kf6 {[%clk 0:00:03]} 42. Rxh7 {[%clk 0:00:19]}  Bd5 {[%clk 0:00:02]} 43. Ng4+ {[%clk 0:00:19]}  Kf5 {[%clk 0:00:02]} 44. Nxe3+ {[%clk 0:00:19]}  Ke4 {[%clk 0:00:02]} 45. Re7+ {[%clk 0:00:20]}  Kd4 {[%clk 0:00:02]} 46. Nxd5 {[%clk 0:00:13]}  Rb2+ {[%clk 0:00:02]} 47. Kf3 {[%clk 0:00:14]}  Kxd5 {[%clk 0:00:02]} 48. Rxa7 {[%clk 0:00:14]}  Rb3+ {[%clk 0:00:01]} 49. Kg4 {[%clk 0:00:14]}  Kd4 {[%clk 0:00:02]} 50. h4 {[%clk 0:00:15]}  Kc4 {[%clk 0:00:02]} 51. Rb7 {[%clk 0:00:15]}  Kb4 {[%clk 0:00:03]} 52. Rxb6 {[%clk 0:00:16]} 1-0


[Site "https://www.chess.com"]

[Event "Titled Tuesday Blitz May 10 Early 2022"]
[White "Yuan, Qingyu"]
[Black "Loh, Zachary"]
[WhiteFideId "8609772"]
[BlackFideId "3210383"]
[WhiteElo "2359"]
[BlackElo "2118"]
[Result "1-0"]
[Round "01"]
[TimeControl "180+1"]
[Date "2022.05.11"]
[WhiteClock "0:01:22"]
[BlackClock "0:00:23"]

1. e4 {[%clk 0:03:00]}  c6 {[%clk 0:02:59]} 2. Nf3 {[%clk 0:03:00]}  d5 {[%clk 0:03:00]} 3. Nc3 {[%clk 0:03:00]}  dxe4 {[%clk 0:02:58]} 4. Nxe4 {[%clk 0:03:01]}  Nf6 {[%clk 0:02:59]} 5. Qe2 {[%clk 0:03:02]}  Nxe4 {[%clk 0:02:59]} 6. Qxe4 {[%clk 0:03:03]}  Nd7 {[%clk 0:02:59]} 7. d4 {[%clk 0:03:03]}  Nf6 {[%clk 0:03:00]} 8. Qf4 {[%clk 0:03:03]}  Nd5 {[%clk 0:02:59]} 9. Qd2 {[%clk 0:03:03]}  g6 {[%clk 0:02:53]} 10. Be2 {[%clk 0:02:59]}  Bg7 {[%clk 0:02:53]} 11. O-O {[%clk 0:02:59]}  O-O {[%clk 0:02:52]} 12. c4 {[%clk 0:02:55]}  Nf6 {[%clk 0:02:52]} 13. h3 {[%clk 0:02:56]}  Bf5 {[%clk 0:02:51]} 14. b3 {[%clk 0:02:54]}  Ne4 {[%clk 0:02:49]} 15. Qe3 {[%clk 0:02:55]}  Nd6 {[%clk 0:02:02]} 16. Bb2 {[%clk 0:02:53]}  Re8 {[%clk 0:02:02]} 17. Rfd1 {[%clk 0:02:47]}  Qa5 {[%clk 0:02:01]} 18. a3 {[%clk 0:02:45]}  Rad8 {[%clk 0:01:59]} 19. b4 {[%clk 0:02:43]}  Qc7 {[%clk 0:01:59]} 20. Rac1 {[%clk 0:02:41]}  h5 {[%clk 0:01:29]} 21. Ne5 {[%clk 0:02:39]}  Bc8 {[%clk 0:01:07]} 22. g4 {[%clk 0:02:03]}  hxg4 {[%clk 0:01:06]} 23. hxg4 {[%clk 0:02:03]}  a6 {[%clk 0:01:00]} 24. c5 {[%clk 0:01:53]}  Nb5 {[%clk 0:00:58]} 25. a4 {[%clk 0:01:52]}  Na7 {[%clk 0:00:59]} 26. Bc4 {[%clk 0:01:46]}  Bxe5 {[%clk 0:00:48]} 27. dxe5 {[%clk 0:01:46]}  Bxg4 {[%clk 0:00:48]} 28. e6 {[%clk 0:01:25]}  Rxd1+ {[%clk 0:00:38]} 29. Rxd1 {[%clk 0:01:24]}  Bxd1 {[%clk 0:00:23]} 30. exf7+ {[%clk 0:01:22]}  Kf8 {[%clk 0:00:23]} 31. Qh6# {[%clk 0:01:22]} 1-0


[Site "https://www.chess.com"]

[Event "Titled Tuesday Blitz May 10 Early 2022"]
[White "Zaksaite, Salomeja"]
[Black "Nguyen, Hong Anh"]
[WhiteFideId "12801496"]
[BlackFideId "12406732"]
[WhiteElo "1953"]
[BlackElo "2016"]
[Result "1-0"]
[Round "01"]
[TimeControl "180+1"]
[Date "2022.05.11"]
[WhiteClock "0:00:10"]
[BlackClock "0:00:19"]

1. e4 {[%clk 0:02:57]}  c5 {[%clk 0:02:56]} 2. Nf3 {[%clk 0:02:56]}  Nc6 {[%clk 0:02:54]} 3. Bb5 {[%clk 0:02:54]}  g6 {[%clk 0:02:53]} 4. O-O {[%clk 0:02:52]}  Bg7 {[%clk 0:02:51]} 5. Re1 {[%clk 0:02:51]}  Nf6 {[%clk 0:02:48]} 6. e5 {[%clk 0:02:46]}  Nd5 {[%clk 0:02:47]} 7. Nc3 {[%clk 0:02:47]}  Nxc3 {[%clk 0:02:45]} 8. dxc3 {[%clk 0:02:45]}  O-O {[%clk 0:02:45]} 9. Qd5 {[%clk 0:02:42]}  d6 {[%clk 0:02:41]} 10. exd6 {[%clk 0:02:34]}  Qxd6 {[%clk 0:02:37]} 11. Qxd6 {[%clk 0:02:22]}  exd6 {[%clk 0:02:35]} 12. Bf4 {[%clk 0:02:23]}  Rd8 {[%clk 0:02:27]} 13. Rad1 {[%clk 0:02:18]}  Bf5 {[%clk 0:02:19]} 14. Bxc6 {[%clk 0:01:39]}  bxc6 {[%clk 0:02:18]} 15. Rxd6 {[%clk 0:01:38]}  Bxc2 {[%clk 0:02:13]} 16. Rxc6 {[%clk 0:01:33]}  Bf8 {[%clk 0:01:53]} 17. h3 {[%clk 0:01:19]}  a5 {[%clk 0:01:49]} 18. Re2 {[%clk 0:00:38]}  Bd1 {[%clk 0:01:44]} 19. Rd2 {[%clk 0:00:38]}  a4 {[%clk 0:01:37]} 20. Ne5 {[%clk 0:00:16]}  Rxd2 {[%clk 0:01:23]} 21. Bxd2 {[%clk 0:00:15]}  Re8 {[%clk 0:01:22]} 22. f4 {[%clk 0:00:13]}  Rd8 {[%clk 0:01:18]} 23. Be3 {[%clk 0:00:12]}  Rd5 {[%clk 0:01:06]} 24. Rc8 {[%clk 0:00:10]}  Bc2 {[%clk 0:01:01]} 25. Ng4 {[%clk 0:00:10]}  Kg7 {[%clk 0:00:58]} 26. f5 {[%clk 0:00:10]}  g5 {[%clk 0:00:52]} 27. f6+ {[%clk 0:00:09]}  Kg6 {[%clk 0:00:47]} 28. Rxf8 {[%clk 0:00:09]}  h5 {[%clk 0:00:37]} 29. Rg8+ {[%clk 0:00:09]}  Kh7 {[%clk 0:00:37]} 30. Rg7+ {[%clk 0:00:09]}  Kh8 {[%clk 0:00:37]} 31. Nh6 {[%clk 0:00:08]}  Bg6 {[%clk 0:00:31]} 32. Nxf7+ {[%clk 0:00:07]}  Bxf7 {[%clk 0:00:30]} 33. Rxf7 {[%clk 0:00:07]}  Kg8 {[%clk 0:00:31]} 34. Rg7+ {[%clk 0:00:06]}  Kf8 {[%clk 0:00:31]} 35. Rxg5 {[%clk 0:00:07]}  Rd1+ {[%clk 0:00:30]} 36. Kf2 {[%clk 0:00:07]}  Kf7 {[%clk 0:00:31]} 37. Rf5 {[%clk 0:00:07]}  Rb1 {[%clk 0:00:30]} 38. Kf3 {[%clk 0:00:06]}  Rxb2 {[%clk 0:00:30]} 39. g4 {[%clk 0:00:06]}  hxg4+ {[%clk 0:00:29]} 40. hxg4 {[%clk 0:00:07]}  Rxa2 {[%clk 0:00:29]} 41. g5 {[%clk 0:00:08]}  Ra1 {[%clk 0:00:22]} 42. g6+ {[%clk 0:00:07]}  Kxg6 {[%clk 0:00:22]} 43. f7 {[%clk 0:00:08]}  Rf1+ {[%clk 0:00:22]} 44. Bf2 {[%clk 0:00:06]}  Kxf5 {[%clk 0:00:20]} 45. f8=Q+ {[%clk 0:00:07]}  Ke5 {[%clk 0:00:21]} 46. Qxc5+ {[%clk 0:00:08]}  Ke6 {[%clk 0:00:21]} 47. Qc4+ {[%clk 0:00:08]}  Kd6 {[%clk 0:00:19]} 48. Qxf1 {[%clk 0:00:09]}  a3 {[%clk 0:00:20]} 49. Qa1 {[%clk 0:00:10]}  Kc6 {[%clk 0:00:19]} 50. Qxa3 {[%clk 0:00:10]}  Kb5 {[%clk 0:00:19]} 51. Qc5+ {[%clk 0:00:10]}  Ka6 {[%clk 0:00:19]} 52. Qb6# {[%clk 0:00:10]} 1-0


[Site "https://www.chess.com"]